Cogmind - Beta 16.1 @@@ ROGUE MODE // 2026.04.14 @ 17:21:16 Player: Uranium-235 Result: Destroyed by G-34 Mercenary with Small Laser Performance ------------- Evolutions (0) 0 Regions Visited (1) 200 Robots Destroyed (4) 20 Value Destroyed (136) 136 Prototype IDs (0) 0 Alien Tech Used (0) 0 Bonus (0) 0 TOTAL SCORE: 356 Bonus ------- None Cogmind --------- Core Integrity 0/250 Matter 78/300 Energy 99/100 System Corruption 0% Temperature Cool (12) Movement Core (100) Ox1 Location -10/Materials Parts ------- > --- POWER (1) -------- (None) > --- PROPULSION (2) --- (None) > --- UTILITY (2) ------ Small Storage Unit > --- WEAPON (2) ------- Light Assault Rifle > --- INVENTORY (8) ---- Compact Wheel Peak State ------------ > --- POWER ------------ (None) > --- PROPULSION ------- Aluminum Leg > --- UTILITY ---------- Small Storage Unit > --- WEAPON ----------- Assault Rifle Light Assault Rifle > --- INVENTORY -------- Compact Wheel [Rating: 4] Favorites ----------- Power None Propulsion Aluminum Leg Leg Aluminum Leg Utility Small Storage Unit Storage Small Storage Unit Weapon Light Assault Rifle Ballistic Gun Light Assault Rifle Build | -11 -10 ------- Run | Yrd Mat Slots Evolved . | . . Power . | . . Propulsion . | . . Utility . | . . Weapon . | . . Parts Attached 4 | . 4 Power . | . . Engine . | . . Core . | . . Reactor . | . . Propulsion 1 | . 1 Treads . | . . Leg 1 | . 1 Wheel . | . . Hover . | . . Flight . | . . Utility 1 | . 1 Device . | . . Storage 1 | . 1 Processor . | . . Hackware . | . . Protection . | . . Artifact . | . . Weapon 2 | . 2 Energy Gun . | . . Energy Cannon . | . . Ballistic Gun 2 | . 2 Ballistic Cannon . | . . Launcher . | . . Special Weapon . | . . Impact Weapon . | . . Slashing Weapon . | . . Piercing Weapon . | . . Special Melee Weapon . | . . Unidentified Prototypes . | . . Parts Lost 2 | . 2 Power . | . . Propulsion 1 | . 1 Utility . | . . Weapon 1 | . 1 Highest Loss Streak 2 | . 2 To Critical Strikes . | . . Average Backups 1 | 1 1 Power . | . . Propulsion 1 | . 1 Utility . | . . Weapon . | . . Tool/Special . | . . Unused Backups 1 | . 1 Power . | . . Propulsion 1 | . 1 Utility . | . . Weapon . | . . Tool/Special . | . . Average Slot Usage (%) 42 | . 42 Leg 10 | . 10 Storage 10 | . 10 Ballistic Gun 20 | . 20 Peak Build Rating 4 | . 4 Average Rating 2 | . 3 On Entrance . | . . Avg Prop Armor Cover (%) . | . . Naked Turns 35 | . 35 Heaviest Build 8 | . 8 Greatest Support 10 | 3 10 Greatest Overweight (x) 1 | . 1 Average Overweight (x) . | . . Largest Inventory Capacity 8 | 5 8 Average Capacity 7 | 5 7 Most Carried 5 | 5 5 Average Carried 1 | 2 1 Final Capacity 8 | 5 8 Final Carried 5 | 5 1 Class Distribution -------------------- 100% | Mutant Dominant Class ---------------- Mutant | -10/Materials Resources | -11 -10 ----------- Run | Yrd Mat Matter Collected 66 | 66 . Remotely . | . . Salvage Created 165 | . 165 Parts 10 | . 10 Haulers Intercepted . | . . Recyclers Shooed . | . . Parts Field Recycled . | . . Retrieved Matter . | . . Parts Self-Destructed . | . . Prevented . | . . Parts Restored . | . . Kills | -11 -10 ------- Run | Yrd Mat Combat Hostiles Destroyed 4 | . 4 Guns 4 | . 4 Classes Destroyed 1 | . 1 Grunt 4 | . 4 Best Kill Streak 4 | . 4 Combat Bots Only 4 | . 4 Max Kills in Single Turn 1 | . 1 Gunslinging . | . . Exploded . | . . Melee . | . . Uniques/NPCs Destroyed . | . . Combat | -11 -10 -------- Run | Yrd Mat Hostile Shots Fired 77 | . 77 Missed 24 | . 24 Hits 53 | . 53 Projectile 53 | . 53 Damage Taken 581 | . 581 Core 259 | . 259 Absorbed by Shields . | . . Core Remaining (%) 100 | 100 . Volleys Fired 19 | . 19 Largest 2 | . 2 Hottest 40 | . 40 Shots Fired 32 | . 32 Gun 32 | . 32 Cannon . | . . Launcher . | . . Special . | . . Kinetic 32 | . 32 Thermal . | . . Explosive . | . . Electromagnetic . | . . Robot Hit Streak 7 | . 7 Robot Miss Streak 5 | . 5 Penetration Max . | . . Secondary Targets 3 | . 3 Max Gunslinging Chain 1 | . 1 Shots Hit Robots 15 | . 15 Core Hits 9 | . 9 Critical Kills . | . . Critical Parts Destroyed . | . . Critical Strikes . | . . Melee Attacks . | . . Impact . | . . Slashing . | . . Piercing . | . . Sneak Attacks . | . . Combat Hostiles . | . . Follow-up Attacks . | . . Damage Inflicted 176 | . 176 Guns 176 | . 176 Cannons . | . . Explosions . | . . Melee . | . . Ramming . | . . Kinetic 176 | . 176 Thermal . | . . Explosive . | . . Electromagnetic . | . . Impact . | . . Slashing . | . . Piercing . | . . Highest Corruption . | . . Average Corruption . | . . Corruption Purged . | . . Corruption Blocked . | . . Overload Shots . | . . Overflow Damage . | . . Projectiles . | . . Explosions . | . . Melee . | . . Knockbacks . | . . Impact . | . . Kinetic . | . . Secondary . | . . Self-Inflicted Damage . | . . Shots . | . . Rammed . | . . Targets Rammed . | . . Kicked . | . . Crushed . | . . Highest Temperature 21 | . 21 Average Temperature 4 | . 4 Received Heat Transfer 318 | . 318 Siege Activations . | . . Martial Activations . | . . Shielding Activations . | . . Robots Disrupted . | . . Combat Hostiles . | . . Robots Corrupted . | . . Combat Hostiles . | . . Parts Fried . | . . Impact Corruptions . | . . Robots Melted . | . . Combat Hostiles . | . . Parts Melted . | . . Heat Transferred . | . . Parts Sabotaged . | . . Parts Stolen . | . . Parts Stripped . | . . Power Chain Reactions . | . . Alert | -11 -10 ------- Run | Yrd Mat Maximum Alert Level . | . . Low Security (%) 100 | 100 100 Level 1 . | . . Level 2 . | . . Level 3 . | . . Level 4 . | . . Level 5 . | . . High Security . | . . Max Security . | . . Peak Influence 60 | . 60 Initial . | . . Average 9 | . 11 Influence Increases 90 | . 90 Destroy 0b10 Robot/C 80 | . 80 Destroy Leader 10 | . 10 Influence Decreases 50 | . 50 Time Decay 30 | . 30 Lost Part 20 | . 20 Squads Dispatched 3 | . 3 Investigation 3 | . 3 Extermination . | . . Reinforcement . | . . Assault . | . . Garrison . | . . Intercept . | . . Searches Triggered . | . . Construction Impeded . | . . Haulers Reinforced . | . . Active Scanning Responses . | . . Cargo Convoy Interrupts . | . . Stealth | -11 -10 --------- Run | Yrd Mat Distress Signals . | . . Communications Jammed . | . . Distress Signals . | . . Times Spotted 7 | . 7 Peak Tracking Total 5 | . 5 Tactical Retreats . | . . Traps | -11 -10 ------- Run | Yrd Mat Traps Triggered 1 | . 1 Indirectly . | . . Trap Hack Attempts . | . . Triggered . | . . Disarmed . | . . Reprogrammed . | . . Reused . | . . Traps Extracted . | . . Installed . | . . Triggered . | . . Machines | -11 -10 ---------- Run | Yrd Mat Machines Disabled . | . . Max in Single Turn . | . . Machines Repaired . | . . Machines Dismantled . | . . Machines Sabotaged . | . . Overloaded Fab Kills . | . . Hacking | -11 -10 --------- Run | Yrd Mat Machines Accessed 2 | . 2 Terminals 2 | . 2 Fabricators . | . . Repair Stations . | . . Recycling Units . | . . Scanalyzers . | . . Garrison Access . | . . Total Hacks 7 | . 7 Successful 5 | . 5 Failed 2 | . 2 Catastrophic 1 | . 1 Database Lockouts . | . . Manual . | . . Terminals 7 | . 7 Fabricators . | . . Repair Stations . | . . Recycling Units . | . . Scanalyzers . | . . Garrison Access . | . . Terminal Hacks 5 | . 5 Record 1 | . 1 Alert Level 3 | . 3 Security Status 1 | . 1 Fabricator Hacks . | . . Repair Station Hacks . | . . Recycling Unit Hacks . | . . Scanalyzer . | . . Garrison Access Hacks . | . . Unauthorized Hacks . | . . Terminals . | . . Fabricators . | . . Repair Stations . | . . Recycling Units . | . . Scanalyzers . | . . Garrison Access . | . . Data Cores Recovered . | . . Used . | . . Hacking Detections 2 | . 2 Full Trace Events 2 | . 2 Feedback Events . | . . Feedback Blocked . | . . Robot Schematics Acquired . | . . Robots Built . | . . Authchips . | . . Time . | . . Total Robot Build Rating . | . . Part Schematics Acquired . | . . Parts Built . | . . Authchips . | . . Time . | . . Total Part Build Rating . | . . Part Studies Acquired . | . . Parts Repaired . | . . Time . | . . Parts Recycled . | . . Recycled Matter . | . . Retrieved Matter . | . . Retrieved Components . | . . Parts Scanalyzed . | . . Part Schematics Acquired . | . . Parts Damaged . | . . Bothacking | -11 -10 ------------ Run | Yrd Mat Used RIF Installer . | . . Robots Hacked . | . . Non-combat . | . . Combat . | . . Robot Hacks Applied . | . . Relay Couplers Released . | . . Fabnet Peak Effective % . | . . Robots Rewired . | . . Allies Hacked . | . . Hacks Repelled . | . . Allies | -11 -10 -------- Run | Yrd Mat Total Allies . | . . Largest Group . | . . Highest-Rated Group . | . . Highest-Rated Ally . | . . Total Orders . | . . Ally Attacks . | . . Total Damage . | . . Kills . | . . Allies Corrupted . | . . Allies Melted . | . . Intel | -11 -10 ------- Run | Yrd Mat Active Infowar (turns) . | . . Robot Analysis Total . | . . Derelict Logs Recovered . | . . Drone Launches . | . . Drone Recoveries . | . . Exploration | -11 -10 ------------- Run | Yrd Mat Turns Passed 238 | 37 201 Spaces Moved 228 | 63 165 Core 133 | 63 70 Treads . | . . Legs 95 | . 95 Wheels . | . . Hover . | . . Flight . | . . Fastest Speed 50 | 50 50 Average Speed 79 | 50 90 Slowest Speed 120 | 50 120 Overloaded Moves . | . . Propulsion Burnouts . | . . Robots Hopped . | . . Potential Cave-ins . | . . Cave-ins Triggered . | . . Exploration Rate (%) 8 | 4 12 Regions Visited 1 Branch Regions . Pre-discovered Areas . | . . Known Exits Taken . | . . Unknown Exits Taken 1 | 1 . Scrap Searched . | . . Spaces Dug . | . . Terrain Destroyed . | . . Melee . | . . Projectile . | . . AOE . | . . Terrain Rammed . | . . Walls Destroyed . | . . Machines Disabled . | . . Actions | -11 -10 --------- Run | Yrd Mat Total 255 | 67 188 Wait . | . . Move 227 | 62 165 Hop . | . . Pick Up 5 | 5 . Fast Attach . | . . Attach 4 | . 4 Detach . | . . Swap . | . . Drop . | . . Fire 19 | . 19 Melee . | . . Ram . | . . Kick . | . . Crush . | . . Escape Stasis . | . . Rewire . | . . Trap . | . . Miscellaneous . | . . Route ------- -11/Scrapyard -10/Materials History --------- Turn | Location | Event 2 | -11/Scrapyard | Met Revision 17 28 | -11/Scrapyard | Discovered new exit (range 16) 38 | -11/Scrapyard | Entered Materials 225 | -10/Materials | Core integrity fell below 50% 236 | -10/Materials | Core integrity fell below 20% 239 | -10/Materials | Destroyed by G-34 Mercenary with Small Laser Last Messages --------------- Security request, restricting to local area... No active security squads found. 00145_ ALERT: Suspicious activity at Terminal M003. Dispatching Investigation squad. 00184_ G-34 Mercenary destroyed. 00184_ Switching to secondary target: G-34 Mercenary. 00193_ G-34 Mercenary destroyed. 00193_ Switching to secondary target: G-34 Mercenary. 00213_ G-34 Mercenary destroyed. 00213_ Switching to secondary target: G-34 Mercenary. 00215_ R-06 Scavenger collects Sml. Laser. 00220_ R-06 Scavenger collects Heat Sink. 00222_ Assault Rifle destroyed. 00223_ R-06 Scavenger collects Ion Engine. 00226_ R-06 Scavenger collects Sml. Laser. 00231_ Aluminum Leg destroyed. 00232_ G-34 Mercenary destroyed. Map ----- +----------------------------------------------------+ | | | | | | | | | | | | | | | | | | | | | | | | | | | | | | | | | | | | | | | | | | | | | ?????????????????###########???????????????? | | ?????????????????# #???????????????? | | ?????????????????# #???????????????? | | ################## @ #???????????????? | | # #???????????????? | | + g! #???????????????? | | # %[= #???????????????? | | ######+########### !gg #???????????????? | | #?# #?????# % %* #???????????????? | | #?#" """#?????###+#######???????????????? | | #?#T """#???????# #?????????????????????? | | #?#" """#???????# ##????????????????????? | | #?# #???????# T#????????????????????? | | #?# """#???????# ##????????????????????? | | #?# """#???????# #?????????????????????? | | #?# """#??????? ?????????????????????? | | #?# #???????#+#?????????????????????? | | ??##########???????????????????????????????? | | ???????????????????????????????????????????? | | ???????????????????????????????????????????? | | ???????????????????????????????????????????? | | ???????????????????????????????????????????? | | ???????????????????????????????????????????? | | ???????????????????????????????????????????? | | ???????????????????????????????????????????? | | ???????????????????????????????????????????? | | ???????????????????????????????????????????? | | ???????????????????????????????????????????? | +----------------------------------------------------+ Best States ------------- Heat Dissipation 25 Energy Generation 5 Energy Capacity 100 Matter Stores 166 Matter Capacity 300 Sight Range 16 Terrain Scan Density 10 Evasion (%) 55 Item Schematics ----------------- None Robot Schematics ------------------ None Fabricated ------------ Nothing Repaired ---------- Nothing Studied --------- None Alien Tech Used ----------------- None Achievements -------------- None Challenges ------------ None Game ------ Seed SystemAluminumFirepult Manual? 0 Play Time 00:05:41 Cumulative 82.5 hours Start 2026.04.14 @ 17:15:40 End 2026.04.14 @ 17:21:16 Sessions 1 Manual Loads 0 Difficulty Rogue Special Mode None Game No. 84 Rogue 84 Adventurer 0 Explorer 0 Win Type - Total 0 Types 0/0/0/0/0/0/0/0/0/0 Lore% 32 Gallery% 43 Achievement% 34 Wizard Run 0 Options --------- Layout 1 ASCII 0 Keyboard 1 Movement Arrows Keybinds 0 Fullscreen 1 Font 24/Smallcaps Map View 50x35 Zoom Use 0% Tactical HUD 1 Map Filters NONE Filters NONE Steam 1 RUN: a5d2e079-3e08-44f8-8197-0b0b1e52f13b